bitfinex/quotes_SOLUSD_20250823
["timestamp","ask_amount","ask_price","bid_price","bid_amount"]
[1755945122768,0.06,203.58,203.57,48.15260772]
[1755945122769,0.75,203.58,203.57,48.15260772]
[1755945122955,0.06,203.58,203.57,48.15260772]
[1755945124370,0.06,203.58,203.57,62.71252487]
[1755945124571,0.06,203.59,203.57,64.67798187]
[1755945124774,0.06,203.59,203.58,10.17260772]
[1755945124976,0.06,203.59,203.58,10.85260772]
[1755945125145,0.06,203.59,203.58,12.81806472]
[1755945126756,0.06,203.59,203.58,26.69798187]
[1755945126955,0.06,203.6,203.59,24.05252487]
[1755945127150,0.06,203.6,203.59,62.01252487]
[1755945127350,0.06,203.6,203.59,62.69252487]
[1755945128374,0.06,203.6,203.59,64.65778887]
[1755945131478,0.75,203.6,203.59,50.09787172]
[1755945131679,0.75,203.6,203.59,48.13260772]
[1755945132653,0.75,203.6,203.59,37.96]
[1755945132859,0.75,203.6,203.59,48.13260772]
[1755945133779,0.75,203.6,203.55,1.96565]
[1755945133979,0.75,203.6,203.56,37.96]
[1755945134978,0.75,203.6,203.58,10.17260772]
[1755945135181,0.06,203.6,203.59,37.96]
[1755945135688,0.75,203.6,203.59,37.96]
[1755945136690,0.75,203.6,203.55,26.0]
[1755945136872,0.75,203.6,203.56,48.13260772]
[1755945137466,0.69,203.59,203.56,48.13260772]
[1755945139094,0.69,203.59,203.56,48.16260772]
[1755945139701,0.06,203.6,203.56,48.16260772]
[1755945139702,0.06,203.6,203.57,10.17260772]
[1755945140094,0.69,203.59,203.58,37.96]
[1755945140883,0.06,203.6,203.58,37.96]
[1755945141301,0.75,203.6,203.58,37.96]
[1755945141802,0.06,203.6,203.58,37.96]
[1755945142003,0.06,203.6,203.59,10.17260772]
[1755945142513,0.06,203.6,203.58,48.13260772]
[1755945142683,0.06,203.6,203.58,48.81260772]
[1755945143015,0.06,203.6,203.59,10.17260772]
[1755945144891,0.06,203.6,203.58,10.17260772]
[1755945145095,0.54,203.59,203.56,0.03]
[1755945145282,0.54,203.59,203.57,37.96]
[1755945145679,0.06,203.6,203.57,37.96]
[1755945145913,0.6,203.6,203.57,37.96]
[1755945147192,0.6,203.6,203.56,10.20260772]
[1755945147509,0.6,203.6,203.57,37.96]
[1755945148392,0.6,203.6,203.57,48.13260772]
[1755945148800,0.06,203.6,203.57,48.79260772]
[1755945151007,0.06,203.6,203.59,10.17260772]
[1755945151302,0.06,203.6,203.59,48.13260772]
[1755945151497,0.06,203.6,203.59,48.79260772]
[1755945154227,0.06,203.6,203.59,38.62]
[1755945154790,0.06,203.6,203.59,37.96]
[1755945155197,0.06,203.6,203.58,10.83260772]
[1755945155397,0.73,203.6,203.59,37.96]
[1755945156103,10.90260772,203.6,203.56,0.03]
[1755945156317,10.17260772,203.57,203.56,0.03]
[1755945156500,10.17260772,203.58,203.56,0.03]
[1755945156698,0.67,203.57,203.56,0.03]
[1755945157507,10.84260772,203.57,203.56,0.03]
[1755945157924,0.67,203.57,203.56,0.03]
[1755945161240,10.84260772,203.57,203.56,0.03]
[1755945161809,0.67,203.57,203.56,0.03]
[1755945164510,89.84260772,203.57,203.56,0.03]
[1755945165033,100.01521572,203.57,203.56,0.03]
[1755945165419,113.89513287,203.57,203.56,0.03]
[1755945165819,139.89513287,203.57,203.56,0.03]
[1755945166416,39.87991715,203.55,203.54,0.03]
[1755945166620,88.01252487,203.55,203.54,0.03]
[1755945166834,88.68252487,203.55,203.54,0.03]
[1755945167041,90.65001187,203.55,203.54,0.03]
[1755945167213,52.69001187,203.55,203.54,0.03]
[1755945167414,90.65001187,203.55,203.54,0.03]
[1755945169144,95.58345917,203.55,203.54,0.03]
[1755945169515,13.87991715,203.54,203.52,0.03]
[1755945169742,24.05252487,203.53,203.52,0.03]
[1755945170018,24.72252487,203.53,203.52,0.03]
[1755945170215,26.69001187,203.53,203.52,0.03]
[1755945171962,54.47740415,203.53,203.52,0.03]
[1755945172254,64.65001187,203.53,203.52,0.03]
[1755945173354,26.69001187,203.53,203.52,0.03]
[1755945180649,16.51740415,203.53,203.52,0.03]
[1755945180846,64.65001187,203.53,203.52,0.03]
[1755945182449,64.65001187,203.53,203.51,0.03]
[1755945182638,50.77252487,203.52,203.51,0.03]
[1755945183159,34.94513259,203.52,203.51,0.03]
[1755945185178,24.77252487,203.52,203.51,0.03]
[1755945188389,34.94513259,203.52,203.51,0.03]
[1755945189658,36.91281359,203.52,203.51,0.03]
[1755945190658,36.91281359,203.52,203.49,0.03]
[1755945190659,13.87991715,203.5,203.49,0.03]
[1755945190858,39.87991715,203.47,203.46,0.03]
[1755945191171,39.87991715,203.44,203.43,0.03]
[1755945191386,88.01252487,203.44,203.43,0.03]
[1755945191757,90.70097987,203.44,203.43,0.03]
[1755945192176,90.70097987,203.44,203.39,0.03]
[1755945192378,39.87991715,203.42,203.41,0.71]
[1755945192583,88.01252487,203.42,203.41,0.71]
[1755945193780,89.98088387,203.42,203.41,0.71]
[1755945194484,52.02088387,203.42,203.41,0.71]
[1755945194685,26.02088387,203.42,203.41,0.71]
[1755945198483,26.02088387,203.42,203.41,0.03]
[1755945198879,64.00088387,203.42,203.41,0.03]
[1755945199100,64.72088387,203.42,203.41,0.03]
[1755945199795,64.00088387,203.42,203.41,0.71]
[1755945200169,26.02088387,203.42,203.41,0.71]
[1755945200369,64.00088387,203.42,203.41,0.71]
[1755945201468,26.02088387,203.42,203.41,0.71]
[1755945202000,52.02088387,203.42,203.41,0.71]
[1755945203696,52.02088387,203.42,203.41,0.03]
[1755945205396,52.02088387,203.42,203.41,0.71]
[1755945205789,52.02088387,203.42,203.41,0.03]
[1755945207879,52.02088387,203.42,203.41,0.69]
[1755945208573,52.02088387,203.42,203.41,0.03]
[1755945208902,90.00088387,203.42,203.41,0.03]
[1755945210187,90.67088387,203.42,203.41,0.03]
[1755945211997,90.00088387,203.42,203.41,0.03]
[1755945216213,52.02088387,203.42,203.41,0.69]
[1755945216513,10.23260772,203.43,203.41,0.69]
[1755945218188,0.06,203.43,203.41,0.69]
[1755945220241,10.23260772,203.43,203.41,0.69]
[1755945222056,0.06,203.43,203.41,0.69]
[1755945222216,0.06,203.43,203.41,10.86260772]
[1755945222853,0.06,203.43,203.42,0.66]
[1755945232826,10.23260772,203.43,203.41,0.03]
[1755945234534,10.23260772,203.43,203.41,0.69]
[1755945237430,10.23260772,203.43,203.41,0.03]
[1755945237642,10.79260772,203.43,203.41,0.03]
[1755945238245,10.73260772,203.42,203.41,0.03]
[1755945238760,12.70077172,203.42,203.41,0.03]
[1755945239942,1.968164,203.42,203.41,0.03]
[1755945240332,0.06,203.43,203.41,0.03]
[1755945241342,0.06,203.43,203.41,0.74]
[1755945241539,0.06,203.43,203.41,10.91260772]
[1755945242150,0.06,203.43,203.42,0.71]
[1755945243139,0.06,203.43,203.42,10.88260772]
[1755945243635,0.06,203.43,203.41,0.74]
[1755945244054,0.06,203.43,203.42,0.71]
[1755945246047,0.06,203.43,203.41,0.03]
[1755945246551,0.06,203.43,203.42,0.71]
[1755945246875,0.06,203.43,203.41,0.74]
[1755945247546,0.06,203.43,203.41,0.03]
[1755945249845,0.06,203.43,203.41,0.74]
[1755945251348,26.06,203.43,203.41,0.03]
[1755945251558,24.70252487,203.42,203.41,0.03]
[1755945251749,26.67088287,203.42,203.41,0.03]
[1755945257161,26.02088287,203.42,203.41,0.03]
[1755945257484,38.14096572,203.42,203.41,0.03]
[1755945258175,38.79096572,203.42,203.41,0.03]
[1755945259584,38.14096572,203.42,203.41,0.03]
[1755945259782,38.14096572,203.42,203.4,0.03]
[1755945259783,13.87991715,203.41,203.4,0.03]
[1755945259983,50.05252487,203.39,203.38,0.03]
[1755945260199,88.03252487,203.39,203.38,0.03]
[1755945260495,90.65136787,203.39,203.38,0.03]
[1755945263689,1.968843,203.39,203.38,0.03]
[1755945263899,38.14145072,203.39,203.38,0.74]
[1755945264417,38.14145072,203.39,203.38,0.03]
[1755945264713,52.67136787,203.39,203.38,0.03]
[1755945264916,52.02136787,203.39,203.38,0.03]
[1755945265794,52.67136787,203.39,203.38,0.03]
[1755945265984,52.02136787,203.39,203.38,0.03]
[1755945266598,90.69136787,203.39,203.38,0.03]
[1755945268086,13.87991715,203.38,203.36,0.03]
[1755945268394,13.87991715,203.36,203.35,0.1]
[1755945268702,24.05252487,203.36,203.35,0.1]
[1755945268899,24.72252487,203.36,203.35,0.1]
[1755945269285,26.69194987,203.36,203.35,0.1]
[1755945270691,16.51934215,203.36,203.35,0.1]
[1755945270887,26.69194987,203.36,203.35,0.1]
[1755945271088,64.77194987,203.36,203.35,0.1]
[1755945271988,0.28432314,203.31,203.3,0.76]
[1755945272189,24.05252487,203.31,203.3,0.76]
[1755945272603,38.82248187,203.31,203.3,0.76]
[1755945274811,38.82248187,203.31,203.3,0.1]
[1755945275025,76.88248187,203.31,203.3,0.1]
[1755945276310,66.70987415,203.31,203.3,0.1]
[1755945276511,76.88248187,203.31,203.3,0.1]
[1755945278186,14.769957,203.31,203.3,0.1]
[1755945278386,14.769957,203.31,203.3,0.76]
[1755945278387,24.94256472,203.31,203.3,0.76]
[1755945278611,10.17260772,203.31,203.3,0.76]
[1755945283318,10.17260772,203.32,203.3,0.76]
[1755945283817,10.17260772,203.32,203.31,0.66]
[1755945283999,20.34521572,203.33,203.31,0.66]
[1755945284197,10.17260772,203.33,203.31,0.66]
[1755945284396,20.34521572,203.33,203.31,0.66]
[1755945284609,10.17260772,203.32,203.3,0.1]
[1755945284814,10.17260772,203.31,203.3,0.1]
[1755945285018,12.14183772,203.31,203.3,0.1]
[1755945285626,26.69175487,203.31,203.3,0.1]
[1755945287608,26.02175487,203.31,203.3,0.1]
[1755945288913,15.84914715,203.31,203.3,0.1]
[1755945289124,26.02175487,203.31,203.3,0.1]
[1755945289325,26.69175487,203.31,203.3,0.1]
[1755945293013,39.59559401,203.26,203.25,0.03]
[1755945293342,88.11252487,203.26,203.25,0.03]
[1755945293528,88.78252487,203.26,203.25,0.03]
[1755945293841,90.75262887,203.26,203.25,0.03]
[1755945296638,90.08262887,203.26,203.25,0.03]
[1755945296936,90.75262887,203.26,203.25,0.03]
[1755945297113,91.25262887,203.26,203.25,0.03]
[1755945297314,90.58262887,203.26,203.25,0.03]
[1755945298542,13.87991715,203.23,203.22,0.66]
[1755945298837,62.11252487,203.23,203.2,0.1]
[1755945299026,89.14260772,203.22,203.2,0.1]
[1755945299537,89.14260772,203.22,203.21,0.66]
[1755945299736,99.31521472,203.22,203.21,0.66]
[1755945300319,78.97,203.25,203.21,0.66]
[1755945300826,38.06,203.27,203.22,10.17260772]
[1755945301023,48.23260772,203.28,203.23,0.66]
[1755945301241,48.25260772,203.28,203.23,0.66]
[1755945301816,10.17260772,203.28,203.23,0.66]
[1755945303140,38.08,203.29,203.23,0.66]
[1755945303332,10.17260772,203.28,203.23,0.66]
[1755945303544,48.25260772,203.29,203.23,0.66]
[1755945303742,38.08,203.29,203.23,10.83260772]
[1755945304043,48.25260772,203.29,203.24,0.66]
[1755945304419,38.08,203.29,203.24,0.66]
[1755945304614,48.23260772,203.3,203.24,0.66]
[1755945305755,10.17260772,203.29,203.24,0.66]
[1755945306047,48.23260772,203.3,203.24,0.66]
[1755945306532,78.97,203.3,203.28,10.17260772]
[1755945306713,78.97,203.3,203.29,0.66]
[1755945307142,78.97,203.3,203.22,0.03]
[1755945307348,78.97,203.3,203.23,0.66]
[1755945307349,23.76820173,203.29,203.23,0.66]
[1755945307646,38.06,203.28,203.23,0.66]
[1755945307948,10.17260772,203.25,203.22,10.202607]
[1755945308118,10.17260772,203.25,203.22,10.862607]
[1755945308452,10.17260772,203.25,203.22,0.03]
[1755945308618,10.862607,203.24,203.22,0.03]
[1755945308824,13.87991715,203.25,203.22,0.03]
[1755945309142,10.172607,203.25,203.23,0.66]
[1755945309647,48.372608,203.26,203.23,0.66]
[1755945310338,10.272608,203.26,203.23,0.66]
[1755945311137,38.18,203.27,203.23,0.66]
[1755945311320,48.35260772,203.27,203.22,0.03]
[1755945311650,10.17260772,203.24,203.22,0.03]
[1755945312035,10.85260772,203.24,203.22,0.03]
[1755945313430,12.82251772,203.24,203.22,0.03]
[1755945313646,0.68,203.23,203.22,0.03]
[1755945314021,12.14251772,203.24,203.22,0.03]
[1755945314347,10.85260772,203.23,203.22,0.03]
[1755945315543,24.73252487,203.23,203.22,0.03]
[1755945316127,62.91252487,203.23,203.22,0.03]
[1755945316326,38.18,203.23,203.22,0.03]
[1755945316546,48.35260772,203.23,203.22,0.03]
[1755945317247,50.32261472,203.23,203.22,0.03]
[1755945319744,40.150007,203.23,203.22,0.03]
[1755945321342,40.150007,203.23,203.22,0.69]
[1755945321550,48.31260772,203.24,203.22,0.69]
[1755945321728,48.31260772,203.24,203.22,0.03]
[1755945321939,48.31260772,203.24,203.22,0.69]
[1755945322327,40.10991,203.24,203.23,0.66]
[1755945322727,40.10991,203.24,203.22,0.03]
[1755945323133,50.28251772,203.24,203.22,0.03]
[1755945323328,48.31260772,203.24,203.22,0.03]
[1755945323532,1.970006,203.23,203.22,0.03]
[1755945323735,12.14261372,203.23,203.22,0.03]
[1755945324043,26.70253087,203.23,203.22,0.03]
[1755945324347,53.98992315,203.23,203.22,0.03]
[1755945324554,64.16253087,203.23,203.22,0.03]
[1755945325754,64.84253087,203.23,203.22,0.03]
[1755945326053,64.16253087,203.23,203.22,0.03]
[1755945326253,53.98992315,203.23,203.22,0.03]
[1755945326435,40.110006,203.23,203.22,0.03]
[1755945327348,1.970006,203.23,203.22,0.7]
[1755945327864,1.970006,203.23,203.22,0.03]
[1755945328063,26.02253087,203.23,203.22,0.03]
[1755945329136,24.05252487,203.23,203.22,0.03]
[1755945329661,24.74252487,203.23,203.22,0.03]
[1755945330656,24.05252487,203.23,203.22,0.03]
[1755945331742,24.74252487,203.23,203.22,0.03]
[1755945332145,13.87991715,203.23,203.22,0.03]
[1755945332341,24.05252487,203.23,203.22,0.03]
[1755945333264,0.28432314,203.23,203.22,0.7]
[1755945333442,62.17252487,203.23,203.22,0.7]
[1755945333644,62.17252487,203.23,203.22,0.03]
[1755945334972,48.29260772,203.23,203.22,0.7]
[1755945335145,10.17260772,203.23,203.22,0.7]
[1755945335650,10.17260772,203.23,203.22,0.03]
[1755945335857,61.88820173,203.24,203.22,0.7]
[1755945336070,39.59559401,203.24,203.22,0.7]
[1755945336274,61.88820173,203.24,203.22,0.03]
[1755945337767,2.030103,203.25,203.23,0.67]
[1755945337951,0.06,203.25,203.23,0.67]
[1755945338583,0.06,203.25,203.24,0.67]
[1755945342975,79.06,203.25,203.24,0.67]
[1755945347480,79.06,203.25,203.22,0.03]
[1755945347481,128.00260772,203.25,203.22,0.03]
[1755945347674,10.86260772,203.24,203.22,0.03]
[1755945348058,0.69,203.23,203.22,0.03]
[1755945349720,10.86260772,203.23,203.22,0.03]
[1755945350089,48.94260772,203.23,203.22,0.03]
[1755945350606,48.25260772,203.23,203.22,0.03]
[1755945352219,10.86260772,203.23,203.22,0.03]
[1755945352817,24.74252487,203.23,203.22,0.03]
[1755945353716,24.05252487,203.23,203.22,0.03]
[1755945353899,24.74252487,203.23,203.22,0.03]
[1755945354685,24.05252487,203.23,203.22,0.03]
[1755945355391,51.93991715,203.23,203.22,0.03]
[1755945355991,88.80252487,203.23,203.22,0.03]
[1755945356387,26.0,203.23,203.22,0.7]
[1755945356893,26.0,203.23,203.22,0.03]
[1755945357302,36.89260772,203.23,203.22,0.03]
[1755945357688,50.77252487,203.23,203.22,0.03]
[1755945358895,13.87991715,203.22,203.1,26.0]
[1755945359113,127.33260772,203.21,203.15,10.17260772]
[1755945359295,79.0,203.2,203.15,10.17260772]
[1755945360422,10.17260772,203.16,203.07,13.87991715]
[1755945360722,10.17260772,203.13,203.07,10.17260772]
[1755945360910,10.17260772,203.14,203.08,0.69]
[1755945361104,14.777961,203.21,203.12,10.17260772]
[1755945361318,0.06,203.25,203.16,10.17260772]
[1755945361616,10.17260772,203.21,203.15,26.0]
[1755945361814,39.04,203.24,203.16,10.86260772]
[1755945362022,10.17260772,203.23,203.17,0.69]
[1755945362327,48.47260772,203.24,203.17,10.86260772]
[1755945362499,10.23260772,203.25,203.18,10.86260772]
[1755945362699,10.17260772,203.24,203.19,0.69]
[1755945363106,0.06,203.25,203.19,10.86260772]
[1755945363305,0.06,203.25,203.2,10.86260772]
[1755945363510,0.06,203.25,203.2,0.69]
[1755945363717,0.06,203.25,203.19,10.17260772]
[1755945363926,0.06,203.25,203.21,0.69]
[1755945364511,0.06,203.25,203.22,0.69]
[1755945364831,0.06,203.25,203.19,10.17260772]
[1755945364832,10.17260772,203.23,203.19,0.69]
[1755945365136,10.17260772,203.2,203.16,0.69]
[1755945365502,10.17260772,203.2,203.17,0.69]
[1755945366018,10.89260772,203.22,203.18,0.69]
[1755945366204,10.17260772,203.22,203.18,0.69]
[1755945367027,10.89260772,203.22,203.18,0.69]
[1755945367629,10.89260772,203.22,203.16,0.69]
[1755945367630,10.17260772,203.21,203.16,0.69]
[1755945368024,10.17260772,203.21,203.15,10.17260772]
[1755945368343,10.17260772,203.21,203.17,0.69]
[1755945369637,0.72,203.22,203.17,0.69]
[1755945369841,10.89260772,203.22,203.17,0.69]
[1755945371038,0.72,203.21,203.15,10.17260772]
[1755945371350,0.72,203.21,203.15,10.86260772]
[1755945371842,10.17260772,203.19,203.13,0.69]
[1755945372049,10.89260772,203.19,203.13,0.69]
[1755945372206,10.89260772,203.18,203.11,36.17260772]
[1755945372409,89.89260772,203.18,203.11,36.86260772]
[1755945372834,10.89260772,203.17,203.11,36.86260772]
[1755945373317,0.72,203.17,203.11,36.86260772]
[1755945373716,0.72,203.17,203.12,0.69]
[1755945373932,0.72,203.17,203.11,36.17260772]
[1755945374235,10.17260772,203.16,203.1,0.69]
[1755945374617,0.72,203.15,203.1,0.69]
[1755945374824,0.72,203.15,203.07,0.69]
[1755945374825,10.17260772,203.14,203.07,0.69]
[1755945375143,10.89260772,203.13,203.07,10.86260772]
[1755945375346,10.89260772,203.12,203.05,0.03]
[1755945375544,10.17260772,203.11,203.05,0.03]
[1755945375710,10.89260772,203.11,203.05,0.03]
[1755945375911,10.17260772,203.11,203.05,0.03]
[1755945376134,0.72,203.1,203.05,0.03]
[1755945376337,0.72,203.1,203.05,10.20260772]
[1755945376538,10.17260772,203.06,203.05,0.03]
[1755945376840,24.05252487,203.06,203.05,0.03]
[1755945377019,50.77252487,203.06,203.05,0.03]
[1755945377730,89.15252487,203.06,203.05,0.03]
[1755945378113,63.15252487,203.06,203.05,0.03]
[1755945378311,52.99991715,203.06,203.05,0.03]
[1755945378613,63.17252487,203.06,203.05,0.03]
[1755945384021,52.99991715,203.06,203.05,0.03]
[1755945384217,52.99991715,203.06,202.95,0.69]
[1755945384218,26.0,203.0,202.95,0.69]
[1755945384520,101.63481194,202.99,202.95,0.69]
[1755945384837,140.09481194,202.99,202.96,0.69]
[1755945385218,23.76820173,202.97,202.91,0.69]
[1755945385417,62.22820173,202.97,202.91,10.86260772]
[1755945385943,62.22820173,202.97,202.91,10.17260772]
[1755945386144,62.22820173,202.97,202.92,0.69]
[1755945386341,126.49921793,202.96,202.89,10.17260772]
[1755945386642,126.49921793,202.96,202.91,0.69]
[1755945386643,10.17260772,202.95,202.91,0.69]
[1755945387032,38.52,202.94,202.91,0.69]
[1755945388234,10.17260772,202.92,202.87,0.65]
[1755945388546,28.67828915,202.93,202.88,10.17260772]
[1755945388716,28.67828915,202.93,202.87,0.65]
[1755945388717,38.54,202.91,202.89,0.65]
[1755945388919,130.28652736,202.93,202.89,0.65]
[1755945389415,38.54,202.92,202.88,10.17260772]
[1755945389644,1.3,202.91,202.86,10.85260772]
[1755945389824,1.3,202.91,202.87,0.65]
[1755945390025,1.3,202.91,202.88,0.65]
[1755945391043,1.3,202.91,202.87,10.17260772]
[1755945391345,1.3,202.91,202.89,0.65]
[1755945391721,1.3,202.91,202.86,0.03]
[1755945391926,1.3,202.91,202.89,0.65]
[1755945392949,1.3,202.91,202.9,0.65]
[1755945393121,116.38661021,202.93,202.9,10.82260772]
[1755945393329,116.38661021,202.93,202.91,0.65]
[1755945393638,77.86661021,202.93,202.91,0.65]
[1755945394027,77.86661021,202.93,202.9,10.17260772]
[1755945394230,77.86661021,202.93,202.9,0.65]
[1755945395631,77.86661021,202.93,202.9,10.82260772]
[1755945395849,77.86661021,202.93,202.91,0.65]
[1755945396073,77.86661021,202.93,202.91,10.82260772]
[1755945396625,77.86661021,202.93,202.91,0.65]
[1755945397351,77.86661021,202.93,202.89,10.82260772]
[1755945397542,77.86661021,202.93,202.9,0.65]
[1755945397946,78.55661021,202.93,202.89,10.17260772]
[1755945398150,78.55661021,202.93,202.88,0.65]
[1755945398472,78.55661021,202.93,202.89,10.17260772]
[1755945398752,0.69,202.92,202.89,10.17260772]
[1755945398939,116.36661021,202.93,202.89,10.82260772]
[1755945399720,1.3,202.91,202.89,10.82260772]
[1755945402747,1.3,202.91,202.89,0.65]
[1755945402951,1.3,202.91,202.89,10.82260772]
[1755945404060,1.3,202.91,202.89,0.65]
[1755945404345,1.3,202.91,202.9,10.17260772]
[1755945404546,1.3,202.91,202.89,10.17260772]
[1755945404865,1.3,202.91,202.89,10.82260772]
[1755945405265,1.3,202.91,202.9,0.65]
[1755945405446,1.3,202.91,202.9,10.82260772]
[1755945406558,1.3,202.91,202.9,0.65]
[1755945406769,1.3,202.91,202.9,10.82260772]
[1755945408045,1.3,202.91,202.9,10.17260772]
[1755945408364,1.3,202.91,202.86,26.03]
[1755945408571,1.3,202.91,202.9,10.17260772]
[1755945409535,1.3,202.91,202.89,10.17260772]
[1755945409751,1.3,202.91,202.89,10.32260772]
[1755945410491,1.3,202.91,202.89,10.82260772]
[1755945412489,1.3,202.91,202.89,0.65]
[1755945412698,1.3,202.91,202.9,10.17260772]
[1755945413284,77.86661021,202.93,202.9,10.17260772]
[1755945413495,77.86661021,202.93,202.91,10.17260772]
[1755945413687,77.86661021,202.93,202.9,10.17260772]
[1755945414057,77.86661021,202.93,202.91,10.17260772]
[1755945414588,78.55661021,202.93,202.91,10.17260772]
[1755945415365,78.55661021,202.93,202.9,10.17260772]
[1755945415992,77.86661021,202.93,202.9,10.82260772]
[1755945416376,77.86661021,202.93,202.9,0.65]
[1755945416562,77.86661021,202.93,202.9,10.82260772]
[1755945416757,77.86661021,202.93,202.9,10.17260772]
[1755945417371,78.55661021,202.93,202.9,10.17260772]
[1755945417779,78.55661021,202.93,202.91,10.17260772]
[1755945418996,77.86661021,202.93,202.89,0.65]
[1755945419195,77.86661021,202.93,202.91,10.17260772]
[1755945419371,78.56661021,202.93,202.91,10.17260772]
[1755945419559,77.86661021,202.93,202.91,10.17260772]
[1755945420302,13.59559401,203.03,202.92,10.89260772]
[1755945420469,39.06,203.02,202.97,10.17260772]
[1755945420793,0.7,203.01,202.95,0.72]
[1755945421095,0.7,203.01,202.97,10.17260772]
[1755945421280,0.7,203.01,202.98,10.17260772]
[1755945421675,10.932608,203.03,202.99,10.17260772]
[1755945421894,0.76,203.03,203.0,10.17260772]
[1755945422268,0.06,203.03,203.0,10.17260772]
[1755945422465,0.06,203.03,203.01,10.17260772]
[1755945422692,0.06,203.03,203.02,10.17260772]
[1755945422900,10.93260772,203.03,202.95,10.17260772]
[1755945423067,0.7,203.02,202.96,10.17260772]
[1755945423266,49.25260772,203.02,202.96,10.17260772]
[1755945423502,10.17260772,203.0,202.89,39.08]
[1755945423702,10.17260772,202.96,202.9,10.20260772]
[1755945423879,0.7,202.95,202.9,0.03]
[1755945424594,10.87260772,202.95,202.9,0.03]
[1755945424999,10.17260772,202.94,202.9,0.03]
[1755945425206,10.87260772,202.94,202.9,0.03]
[1755945425414,0.7,202.93,202.9,0.03]
[1755945425993,0.7,202.92,202.9,0.03]
[1755945426702,0.7,202.94,202.9,0.03]
[1755945427090,10.17260772,202.95,202.9,0.03]
[1755945427091,0.7,202.93,202.9,0.03]
[1755945428189,39.06,202.95,202.91,10.89260772]
[1755945428391,0.7,202.94,202.91,10.17260772]
[1755945428713,20.37521472,202.97,202.91,10.17260772]
[1755945429016,0.7,202.96,202.92,10.17260772]
[1755945429214,38.36,202.97,202.92,10.17260772]
[1755945429517,0.7,202.95,202.92,10.17260772]
[1755945430983,0.7,202.95,202.9,0.75]
[1755945431218,0.7,202.95,202.91,10.17260772]
[1755945431594,38.36,202.97,202.93,10.17260772]
[1755945431595,77.86661021,202.97,202.93,10.17260772]
[1755945431794,39.06,203.0,202.96,10.17260772]
[1755945431987,39.06,203.0,202.95,10.17260772]
[1755945432212,0.7,202.99,202.95,10.89260772]
[1755945432503,0.7,202.99,202.95,10.17260772]
[1755945432725,0.7,202.98,202.93,10.17260772]
[1755945433492,10.87260772,202.98,202.91,10.17260772]
[1755945433800,0.7,202.97,202.92,10.17260772]
[1755945434012,0.7,202.96,202.92,10.17260772]
[1755945435812,0.7,202.96,202.92,10.89260772]
[1755945437531,78.56661021,202.96,202.92,10.89260772]
[1755945438731,77.86661021,202.96,202.92,10.17260772]
[1755945438932,77.86661021,202.96,202.94,10.17260772]
[1755945439134,77.86661021,202.96,202.94,10.89260772]
[1755945439855,77.86661021,202.96,202.94,10.17260772]
[1755945440163,77.86661021,202.96,202.9,0.03]
[1755945440164,77.86661021,202.96,202.95,10.89260772]
[1755945441153,77.86661021,202.96,202.95,0.72]
[1755945441359,77.86661021,202.96,202.95,10.17260772]
[1755945441831,77.86661021,202.96,202.94,10.17260772]
[1755945443475,0.7,202.98,202.94,10.17260772]
[1755945443633,0.7,202.97,202.94,10.17260772]
[1755945444341,0.7,202.96,202.94,10.17260772]
[1755945444540,77.86661021,202.99,202.94,10.17260772]